[Event "Titled Tuesday Blitz February 07 Late 2023"]
[White "Ruiz Aguilar, Pablo Alexander"]
[Black "Seletsky, Grigory"]
[WhiteFideId "4401352"]
[BlackFideId "14112191"]
[WhiteElo "2161"]
[BlackElo "2259"]
[Result "1-0"]
[Round "07"]
[TimeControl "180+2"]
[Date "2023.02.07"]
[WhiteClock "0:00:07"]
[BlackClock "0:00:01"]

1. e4 {[%clk 0:03:00]}  e6 {[%clk 0:02:57]} 2. d4 {[%clk 0:03:00]}  d5 {[%clk 0:02:57]} 3. Nd2 {[%clk 0:03:00]}  Nc6 {[%clk 0:02:56]} 4. Ngf3 {[%clk 0:02:57]}  Nf6 {[%clk 0:02:55]} 5. e5 {[%clk 0:02:56]}  Nd7 {[%clk 0:02:55]} 6. Nb3 {[%clk 0:02:56]}  a5 {[%clk 0:02:54]} 7. a4 {[%clk 0:02:55]}  b6 {[%clk 0:02:54]} 8. c3 {[%clk 0:02:55]}  Ba6 {[%clk 0:02:52]} 9. Bb5 {[%clk 0:02:54]}  Ncb8 {[%clk 0:02:50]} 10. O-O {[%clk 0:02:53]}  c6 {[%clk 0:02:50]} 11. Bd3 {[%clk 0:02:52]}  Bxd3 {[%clk 0:02:48]} 12. Qxd3 {[%clk 0:02:52]}  Be7 {[%clk 0:02:49]} 13. c4 {[%clk 0:02:38]}  O-O {[%clk 0:02:46]} 14. Be3 {[%clk 0:02:37]}  Qc8 {[%clk 0:02:45]} 15. Rfc1 {[%clk 0:02:35]}  Qb7 {[%clk 0:02:24]} 16. Ng5 {[%clk 0:02:20]}  Bxg5 {[%clk 0:02:21]} 17. Bxg5 {[%clk 0:02:20]}  Na6 {[%clk 0:02:19]} 18. Be7 {[%clk 0:02:17]}  Rfe8 {[%clk 0:02:17]} 19. Bd6 {[%clk 0:02:17]}  Rac8 {[%clk 0:02:10]} 20. cxd5 {[%clk 0:02:10]}  exd5 {[%clk 0:02:03]} 21. Qf5 {[%clk 0:01:59]}  c5 {[%clk 0:01:57]} 22. Rc3 {[%clk 0:01:53]}  cxd4 {[%clk 0:01:43]} 23. Nxd4 {[%clk 0:01:52]}  Rxc3 {[%clk 0:01:34]} 24. bxc3 {[%clk 0:01:52]}  Nac5 {[%clk 0:01:27]} 25. Nb5 {[%clk 0:01:49]}  Nf8 {[%clk 0:01:03]} 26. Bxc5 {[%clk 0:01:41]}  bxc5 {[%clk 0:01:03]} 27. Nd6 {[%clk 0:01:42]}  Qe7 {[%clk 0:00:26]} 28. Nxe8 {[%clk 0:01:37]}  Qxe8 {[%clk 0:00:27]} 29. f4 {[%clk 0:01:15]}  Ne6 {[%clk 0:00:25]} 30. g3 {[%clk 0:01:13]}  g6 {[%clk 0:00:23]} 31. Qc2 {[%clk 0:01:13]}  c4 {[%clk 0:00:20]} 32. Rb1 {[%clk 0:01:08]}  Qc6 {[%clk 0:00:20]} 33. Rb5 {[%clk 0:01:07]}  d4 {[%clk 0:00:20]} 34. cxd4 {[%clk 0:00:55]}  Nxd4 {[%clk 0:00:20]} 35. Rb8+ {[%clk 0:00:55]}  Kg7 {[%clk 0:00:19]} 36. Qf2 {[%clk 0:00:46]}  Qe4 {[%clk 0:00:18]} 37. Rd8 {[%clk 0:00:23]}  Nb3 {[%clk 0:00:11]} 38. e6 {[%clk 0:00:20]}  Qxe6 {[%clk 0:00:06]} 39. Qb2+ {[%clk 0:00:19]}  f6 {[%clk 0:00:04]} 40. Qf2 {[%clk 0:00:15]}  Qc6 {[%clk 0:00:03]} 41. Qa7+ {[%clk 0:00:07]}  Kh6 {[%clk 0:00:01]} 42. Qe3 {[%clk 0:00:07]} 1-0


[Site "https://www.chess.com"]

[Event "Titled Tuesday Blitz February 07 Late 2023"]
[White "Toktomushev, Teimur"]
[Black "Vovk, Orest"]
[WhiteFideId "14176726"]
[BlackFideId "14113490"]
[WhiteElo "2239"]
[BlackElo "2315"]
[Result "1/2-1/2"]
[Round "07"]
[TimeControl "180+2"]
[Date "2023.02.07"]
[WhiteClock "0:00:03"]
[BlackClock "0:00:08"]

1. d4 {[%clk 0:02:59]}  h6 {[%clk 0:02:57]} 2. e4 {[%clk 0:02:55]}  g5 {[%clk 0:02:55]} 3. Nc3 {[%clk 0:02:50]}  Bg7 {[%clk 0:02:55]} 4. h4 {[%clk 0:02:46]}  g4 {[%clk 0:02:55]} 5. Qxg4 {[%clk 0:02:40]}  Bxd4 {[%clk 0:02:54]} 6. Nf3 {[%clk 0:02:36]}  Nf6 {[%clk 0:02:40]} 7. Qg7 {[%clk 0:01:55]}  Rg8 {[%clk 0:02:36]} 8. Qxh6 {[%clk 0:01:53]}  Bxf2+ {[%clk 0:02:36]} 9. Kd1 {[%clk 0:01:51]}  d5 {[%clk 0:02:29]} 10. e5 {[%clk 0:01:41]}  d4 {[%clk 0:02:29]} 11. exf6 {[%clk 0:00:52]}  dxc3+ {[%clk 0:02:28]} 12. Bd3 {[%clk 0:00:52]}  exf6 {[%clk 0:01:48]} 13. Rf1 {[%clk 0:00:11]}  Rxg2 {[%clk 0:01:40]} 14. Rxf2 {[%clk 0:00:11]}  Rxf2 {[%clk 0:01:38]} 15. Qe3+ {[%clk 0:00:11]}  Kf8 {[%clk 0:01:37]} 16. Qxf2 {[%clk 0:00:12]}  Bg4 {[%clk 0:01:34]} 17. Bh6+ {[%clk 0:00:09]}  Kg8 {[%clk 0:01:19]} 18. bxc3 {[%clk 0:00:03]}  Qd5 {[%clk 0:01:16]} 19. Kd2 {[%clk 0:00:03]}  Qxf3 {[%clk 0:01:00]} 20. Qxf3 {[%clk 0:00:03]}  Bxf3 {[%clk 0:01:01]} 21. Rg1+ {[%clk 0:00:03]}  Kh8 {[%clk 0:01:02]} 22. Bg7+ {[%clk 0:00:03]}  Kg8 {[%clk 0:01:02]} 23. Bxf6+ {[%clk 0:00:03]}  Kf8 {[%clk 0:01:02]} 24. Bg7+ {[%clk 0:00:02]}  Ke7 {[%clk 0:01:01]} 25. Re1+ {[%clk 0:00:02]}  Kd6 {[%clk 0:00:53]} 26. Rf1 {[%clk 0:00:02]}  Bd5 {[%clk 0:00:52]} 27. h5 {[%clk 0:00:02]}  Nd7 {[%clk 0:00:43]} 28. h6 {[%clk 0:00:03]}  Nf8 {[%clk 0:00:43]} 29. Rf6+ {[%clk 0:00:02]}  Ke7 {[%clk 0:00:41]} 30. h7 {[%clk 0:00:02]}  Nxh7 {[%clk 0:00:36]} 31. Bxh7 {[%clk 0:00:03]}  Bxa2 {[%clk 0:00:36]} 32. Rh6 {[%clk 0:00:03]}  Rd8+ {[%clk 0:00:35]} 33. Kc1 {[%clk 0:00:02]}  Be6 {[%clk 0:00:36]} 34. Bf6+ {[%clk 0:00:02]}  Kd7 {[%clk 0:00:36]} 35. Bxd8 {[%clk 0:00:03]}  Kxd8 {[%clk 0:00:37]} 36. Rh2 {[%clk 0:00:03]}  Kd7 {[%clk 0:00:38]} 37. Rd2+ {[%clk 0:00:03]}  Kc6 {[%clk 0:00:38]} 38. Bd3 {[%clk 0:00:04]}  b5 {[%clk 0:00:37]} 39. Be4+ {[%clk 0:00:05]}  Kc5 {[%clk 0:00:37]} 40. Rf2 {[%clk 0:00:04]}  a5 {[%clk 0:00:36]} 41. Kb2 {[%clk 0:00:04]}  Kd6 {[%clk 0:00:35]} 42. Bf5 {[%clk 0:00:03]}  Bd5 {[%clk 0:00:34]} 43. Bd3 {[%clk 0:00:04]}  c6 {[%clk 0:00:33]} 44. c4 {[%clk 0:00:04]}  bxc4 {[%clk 0:00:32]} 45. Bf1 {[%clk 0:00:03]}  Kc5 {[%clk 0:00:27]} 46. Kc3 {[%clk 0:00:03]}  a4 {[%clk 0:00:28]} 47. Rf4 {[%clk 0:00:03]}  a3 {[%clk 0:00:27]} 48. Bxc4 {[%clk 0:00:03]}  a2 {[%clk 0:00:28]} 49. Bxa2 {[%clk 0:00:02]}  Bxa2 {[%clk 0:00:28]} 50. Rf5+ {[%clk 0:00:02]}  Bd5 {[%clk 0:00:28]} 51. Kd3 {[%clk 0:00:02]}  Kd6 {[%clk 0:00:25]} 52. Kd4 {[%clk 0:00:03]}  c5+ {[%clk 0:00:20]} 53. Ke3 {[%clk 0:00:02]}  Be6 {[%clk 0:00:20]} 54. Rh5 {[%clk 0:00:03]}  f5 {[%clk 0:00:18]} 55. Kf4 {[%clk 0:00:02]}  Kd5 {[%clk 0:00:18]} 56. Rh8 {[%clk 0:00:03]}  Kd4 {[%clk 0:00:15]} 57. Rd8+ {[%clk 0:00:02]}  Kc3 {[%clk 0:00:15]} 58. Re8 {[%clk 0:00:02]}  Bd7 {[%clk 0:00:11]} 59. Re7 {[%clk 0:00:02]}  Ba4 {[%clk 0:00:10]} 60. Rc7 {[%clk 0:00:02]}  c4 {[%clk 0:00:09]} 61. Rxc4+ {[%clk 0:00:02]}  Kxc4 {[%clk 0:00:08]} 62. Kxf5 {[%clk 0:00:02]}  Kd5 {[%clk 0:00:08]} 63. Kg6 {[%clk 0:00:03]}  Bxc2+ {[%clk 0:00:08]} 1/2-1/2


[Site "https://www.chess.com"]

[Event "Titled Tuesday Blitz February 07 Late 2023"]
[White "Sabar, Ethmane Daouda"]
[Black "Danielyan, Vahe"]
[WhiteFideId "19600097"]
[BlackFideId "13304828"]
[WhiteElo "2040"]
[BlackElo "2346"]
[Result "0-1"]
[Round "07"]
[TimeControl "180+2"]
[Date "2023.02.07"]
[WhiteClock "0:00:04"]
[BlackClock "0:00:19"]

1. e4 {[%clk 0:02:59]}  e6 {[%clk 0:02:57]} 2. a3 {[%clk 0:02:56]}  d5 {[%clk 0:02:55]} 3. exd5 {[%clk 0:02:56]}  exd5 {[%clk 0:02:54]} 4. d4 {[%clk 0:02:57]}  Nf6 {[%clk 0:02:54]} 5. Nf3 {[%clk 0:02:56]}  Bd6 {[%clk 0:02:55]} 6. Bd3 {[%clk 0:02:57]}  O-O {[%clk 0:02:55]} 7. O-O {[%clk 0:02:57]}  Bg4 {[%clk 0:02:55]} 8. Nbd2 {[%clk 0:02:56]}  Nc6 {[%clk 0:02:55]} 9. c3 {[%clk 0:02:55]}  Qd7 {[%clk 0:02:55]} 10. Re1 {[%clk 0:02:42]}  Rae8 {[%clk 0:02:54]} 11. h3 {[%clk 0:02:27]}  Bxh3 {[%clk 0:02:54]} 12. gxh3 {[%clk 0:02:26]}  Qxh3 {[%clk 0:02:55]} 13. Bf1 {[%clk 0:02:15]}  Qh5 {[%clk 0:02:34]} 14. Bg2 {[%clk 0:02:12]}  Ng4 {[%clk 0:02:34]} 15. Nf1 {[%clk 0:01:58]}  Ne7 {[%clk 0:01:50]} 16. Ne5 {[%clk 0:01:41]}  Bxe5 {[%clk 0:01:18]} 17. Rxe5 {[%clk 0:01:38]}  Qh4 {[%clk 0:01:11]} 18. Rg5 {[%clk 0:00:43]}  Qxf2+ {[%clk 0:01:04]} 19. Kh1 {[%clk 0:00:43]}  Qh4+ {[%clk 0:01:05]} 20. Kg1 {[%clk 0:00:43]}  h5 {[%clk 0:00:39]} 21. Qf3 {[%clk 0:00:33]}  f6 {[%clk 0:00:26]} 22. Rxd5 {[%clk 0:00:27]}  Nxd5 {[%clk 0:00:26]} 23. Qxd5+ {[%clk 0:00:28]}  Kh8 {[%clk 0:00:26]} 24. Qf3 {[%clk 0:00:13]}  Re1 {[%clk 0:00:25]} 25. b4 {[%clk 0:00:04]}  Qh2# {[%clk 0:00:19]} 0-1


[Site "https://www.chess.com"]

[Event "Titled Tuesday Blitz February 07 Late 2023"]
[White "Rosenberg, Evan S"]
[Black "Chor, Kevin"]
[WhiteFideId "2019299"]
[BlackFideId "2090740"]
[WhiteElo "1956"]
[BlackElo "1944"]
[Result "0-1"]
[Round "07"]
[TimeControl "180+2"]
[Date "2023.02.07"]
[WhiteClock "0:01:01"]
[BlackClock "0:00:35"]

1. d4 {[%clk 0:03:00]}  Nf6 {[%clk 0:03:00]} 2. Nf3 {[%clk 0:03:00]}  g6 {[%clk 0:03:00]} 3. Nc3 {[%clk 0:02:59]}  d5 {[%clk 0:02:58]} 4. Bf4 {[%clk 0:03:00]}  Bg7 {[%clk 0:02:56]} 5. Nb5 {[%clk 0:03:01]}  Na6 {[%clk 0:02:56]} 6. e3 {[%clk 0:03:01]}  O-O {[%clk 0:02:52]} 7. h3 {[%clk 0:03:02]}  c6 {[%clk 0:02:50]} 8. Nc3 {[%clk 0:03:01]}  Nc7 {[%clk 0:02:50]} 9. Bd3 {[%clk 0:03:02]}  a5 {[%clk 0:02:45]} 10. a4 {[%clk 0:03:01]}  Na6 {[%clk 0:02:41]} 11. O-O {[%clk 0:02:58]}  Nb4 {[%clk 0:02:42]} 12. Be2 {[%clk 0:02:50]}  Bf5 {[%clk 0:02:42]} 13. Rc1 {[%clk 0:02:50]}  Ne4 {[%clk 0:02:41]} 14. Nxe4 {[%clk 0:02:42]}  Bxe4 {[%clk 0:02:36]} 15. c3 {[%clk 0:02:42]}  Na6 {[%clk 0:02:34]} 16. g4 {[%clk 0:02:37]}  Bxf3 {[%clk 0:02:29]} 17. Bxf3 {[%clk 0:02:37]}  e6 {[%clk 0:02:26]} 18. Qd2 {[%clk 0:02:17]}  Nb8 {[%clk 0:02:20]} 19. Kg2 {[%clk 0:02:05]}  Nd7 {[%clk 0:02:20]} 20. Rh1 {[%clk 0:02:04]}  e5 {[%clk 0:02:17]} 21. Bg3 {[%clk 0:01:59]}  Qe7 {[%clk 0:02:06]} 22. h4 {[%clk 0:01:58]}  f5 {[%clk 0:02:06]} 23. gxf5 {[%clk 0:01:58]}  gxf5 {[%clk 0:02:00]} 24. h5 {[%clk 0:01:53]}  f4 {[%clk 0:01:48]} 25. exf4 {[%clk 0:01:50]}  exf4 {[%clk 0:01:49]} 26. Bh4 {[%clk 0:01:49]}  Qd6 {[%clk 0:01:49]} 27. Rce1 {[%clk 0:01:46]}  Nf6 {[%clk 0:01:40]} 28. Re5 {[%clk 0:01:42]}  Ne4 {[%clk 0:01:34]} 29. Bxe4 {[%clk 0:01:38]}  dxe4 {[%clk 0:01:28]} 30. Be7 {[%clk 0:01:38]}  Qd7 {[%clk 0:01:08]} 31. Rxe4 {[%clk 0:01:30]}  Qg4+ {[%clk 0:01:03]} 32. Kf1 {[%clk 0:01:30]}  Qf3 {[%clk 0:01:04]} 33. Rg1 {[%clk 0:01:20]}  Qxe4 {[%clk 0:01:02]} 34. Bxf8 {[%clk 0:01:19]}  Rxf8 {[%clk 0:01:03]} 35. h6 {[%clk 0:01:19]}  Rf7 {[%clk 0:00:49]} 36. Rxg7+ {[%clk 0:01:16]}  Rxg7 {[%clk 0:00:48]} 37. hxg7 {[%clk 0:01:17]}  f3 {[%clk 0:00:40]} 38. Qe3 {[%clk 0:01:01]}  Qb1+ {[%clk 0:00:35]} 39. Qe1 {[%clk 0:01:01]}  Qd3+ {[%clk 0:00:35]} 0-1


[Site "https://www.chess.com"]

[Event "Titled Tuesday Blitz February 07 Late 2023"]
[White "Estrada Nieto, Julian"]
[Black "Kovalevsky, Stanislav"]
[WhiteFideId "5101018"]
[BlackFideId "13508598"]
[WhiteElo "2215"]
[BlackElo "2237"]
[Result "1-0"]
[Round "07"]
[TimeControl "180+2"]
[Date "2023.02.07"]
[WhiteClock "0:00:08"]
[BlackClock "0:00:05"]

1. e4 {[%clk 0:03:00]}  e6 {[%clk 0:03:00]} 2. d4 {[%clk 0:03:00]}  d5 {[%clk 0:03:00]} 3. Nd2 {[%clk 0:03:00]}  dxe4 {[%clk 0:03:01]} 4. Nxe4 {[%clk 0:03:00]}  Nf6 {[%clk 0:03:02]} 5. Nxf6+ {[%clk 0:02:59]}  gxf6 {[%clk 0:03:02]} 6. Nf3 {[%clk 0:02:56]}  Nc6 {[%clk 0:03:03]} 7. g3 {[%clk 0:02:53]}  Ne7 {[%clk 0:03:03]} 8. Bg2 {[%clk 0:02:52]}  Bd7 {[%clk 0:03:04]} 9. O-O {[%clk 0:02:50]}  Bc6 {[%clk 0:03:05]} 10. Re1 {[%clk 0:02:44]}  Qd5 {[%clk 0:03:01]} 11. Nh4 {[%clk 0:02:33]}  Qd7 {[%clk 0:03:01]} 12. Qh5 {[%clk 0:02:19]}  Bxg2 {[%clk 0:02:53]} 13. Nxg2 {[%clk 0:02:11]}  Ng6 {[%clk 0:02:14]} 14. Nf4 {[%clk 0:02:03]}  O-O-O {[%clk 0:02:11]} 15. Nxg6 {[%clk 0:02:02]}  fxg6 {[%clk 0:02:09]} 16. Qa5 {[%clk 0:01:58]}  Kb8 {[%clk 0:02:03]} 17. Be3 {[%clk 0:01:45]}  Qd5 {[%clk 0:01:58]} 18. Qa4 {[%clk 0:01:40]}  h5 {[%clk 0:01:36]} 19. c4 {[%clk 0:01:39]}  Qd7 {[%clk 0:01:34]} 20. Qxd7 {[%clk 0:01:19]}  Rxd7 {[%clk 0:01:34]} 21. Bf4 {[%clk 0:01:10]}  Rxd4 {[%clk 0:01:05]} 22. Rxe6 {[%clk 0:01:05]}  Bd6 {[%clk 0:01:03]} 23. Rxf6 {[%clk 0:01:00]}  Bxf4 {[%clk 0:01:01]} 24. Rxf4 {[%clk 0:00:58]}  Rxf4 {[%clk 0:01:01]} 25. gxf4 {[%clk 0:00:58]}  Rf8 {[%clk 0:01:02]} 26. Re1 {[%clk 0:00:58]}  b6 {[%clk 0:00:56]} 27. Re4 {[%clk 0:00:58]}  Kb7 {[%clk 0:00:56]} 28. Kg2 {[%clk 0:00:58]}  Kc6 {[%clk 0:00:56]} 29. Re6+ {[%clk 0:00:55]}  Kc5 {[%clk 0:00:56]} 30. Rxg6 {[%clk 0:00:53]}  Rxf4 {[%clk 0:00:56]} 31. Rg5+ {[%clk 0:00:50]}  Kxc4 {[%clk 0:00:56]} 32. Rxh5 {[%clk 0:00:50]}  c5 {[%clk 0:00:54]} 33. Rh7 {[%clk 0:00:49]}  a5 {[%clk 0:00:54]} 34. Kg3 {[%clk 0:00:49]}  Rf8 {[%clk 0:00:48]} 35. h4 {[%clk 0:00:45]}  b5 {[%clk 0:00:48]} 36. h5 {[%clk 0:00:40]}  Kd5 {[%clk 0:00:48]} 37. h6 {[%clk 0:00:34]}  b4 {[%clk 0:00:33]} 38. Ra7 {[%clk 0:00:33]}  Rh8 {[%clk 0:00:31]} 39. h7 {[%clk 0:00:33]}  Kd4 {[%clk 0:00:29]} 40. f4 {[%clk 0:00:27]}  c4 {[%clk 0:00:29]} 41. Kf3 {[%clk 0:00:23]}  c3 {[%clk 0:00:29]} 42. Rd7+ {[%clk 0:00:23]}  Kc5 {[%clk 0:00:28]} 43. bxc3 {[%clk 0:00:21]}  bxc3 {[%clk 0:00:28]} 44. Ke3 {[%clk 0:00:22]}  Kb4 {[%clk 0:00:24]} 45. Kd3 {[%clk 0:00:20]}  Rc8 {[%clk 0:00:18]} 46. Kc2 {[%clk 0:00:17]}  Rh8 {[%clk 0:00:13]} 47. Rb7+ {[%clk 0:00:14]}  Kc4 {[%clk 0:00:13]} 48. Ra7 {[%clk 0:00:10]}  Kb4 {[%clk 0:00:13]} 49. f5 {[%clk 0:00:09]}  a4 {[%clk 0:00:09]} 50. f6 {[%clk 0:00:09]}  Re8 {[%clk 0:00:10]} 51. f7 {[%clk 0:00:08]}  Re2+ {[%clk 0:00:10]} 52. Kd3 {[%clk 0:00:08]}  Rd2+ {[%clk 0:00:10]} 53. Ke3 {[%clk 0:00:08]}  Rd8 {[%clk 0:00:06]} 54. Rb7+ {[%clk 0:00:06]}  Ka3 {[%clk 0:00:06]} 55. Re7 {[%clk 0:00:07]}  c2 {[%clk 0:00:06]} 56. Rc7 {[%clk 0:00:06]}  c1=Q+ {[%clk 0:00:06]} 57. Rxc1 {[%clk 0:00:06]}  Kxa2 {[%clk 0:00:05]} 58. Rf1 {[%clk 0:00:05]}  Rf8 {[%clk 0:00:04]} 59. Ke4 {[%clk 0:00:05]}  Kb2 {[%clk 0:00:04]} 60. Ke5 {[%clk 0:00:05]}  a3 {[%clk 0:00:04]} 61. Ke6 {[%clk 0:00:06]}  a2 {[%clk 0:00:05]} 62. Ke7 {[%clk 0:00:06]}  Rh8 {[%clk 0:00:04]} 63. Rh1 {[%clk 0:00:04]}  Rxh7 {[%clk 0:00:02]} 64. Rxh7 {[%clk 0:00:04]}  a1=Q {[%clk 0:00:02]} 65. f8=Q {[%clk 0:00:04]}  Qa3+ {[%clk 0:00:02]} 66. Kf7 {[%clk 0:00:05]}  Qa7+ {[%clk 0:00:02]} 67. Kg8 {[%clk 0:00:05]}  Qg1+ {[%clk 0:00:03]} 68. Qg7+ {[%clk 0:00:05]}  Qxg7+ {[%clk 0:00:03]} 69. Rxg7 {[%clk 0:00:05]}  Kc3 {[%clk 0:00:04]} 70. Kf7 {[%clk 0:00:06]}  Kc4 {[%clk 0:00:04]} 71. Rg6 {[%clk 0:00:07]}  Kd5 {[%clk 0:00:05]} 72. Kf6 {[%clk 0:00:08]} 1-0


[Site "https://www.chess.com"]

[Event "Titled Tuesday Blitz February 07 Late 2023"]
[White "Harish, Neeraj"]
[Black "Kovacs, Klara"]
[WhiteFideId "30958130"]
[BlackFideId "733210"]
[WhiteElo "2232"]
[BlackElo "2121"]
[Result "1-0"]
[Round "07"]
[TimeControl "180+2"]
[Date "2023.02.07"]
[WhiteClock "0:00:17"]
[BlackClock "0:00:59"]

1. e4 {[%clk 0:03:00]}  e6 {[%clk 0:02:43]} 2. d4 {[%clk 0:02:58]}  d5 {[%clk 0:02:37]} 3. e5 {[%clk 0:02:57]}  c5 {[%clk 0:02:36]} 4. c3 {[%clk 0:02:56]}  Nc6 {[%clk 0:02:33]} 5. Nf3 {[%clk 0:02:54]}  Bd7 {[%clk 0:02:33]} 6. Be2 {[%clk 0:02:53]}  cxd4 {[%clk 0:02:20]} 7. cxd4 {[%clk 0:02:52]}  Nh6 {[%clk 0:02:21]} 8. Nc3 {[%clk 0:02:45]}  f6 {[%clk 0:02:17]} 9. exf6 {[%clk 0:02:41]}  gxf6 {[%clk 0:02:13]} 10. O-O {[%clk 0:02:19]}  Bg7 {[%clk 0:02:11]} 11. Bf4 {[%clk 0:02:05]}  O-O {[%clk 0:02:10]} 12. Re1 {[%clk 0:01:44]}  Nf7 {[%clk 0:02:10]} 13. Bg3 {[%clk 0:01:39]}  Rc8 {[%clk 0:02:00]} 14. a3 {[%clk 0:01:34]}  a6 {[%clk 0:01:59]} 15. Bd3 {[%clk 0:01:33]}  b5 {[%clk 0:02:00]} 16. Qc2 {[%clk 0:01:29]}  Qb6 {[%clk 0:01:52]} 17. Bxh7+ {[%clk 0:01:20]}  Kh8 {[%clk 0:01:48]} 18. Bg6 {[%clk 0:00:46]}  Nh6 {[%clk 0:01:41]} 19. Qd2 {[%clk 0:00:39]}  Qb7 {[%clk 0:01:15]} 20. Bd3 {[%clk 0:00:29]}  Na5 {[%clk 0:01:13]} 21. Nh4 {[%clk 0:00:28]}  Kg8 {[%clk 0:01:10]} 22. Rad1 {[%clk 0:00:25]}  Nb3 {[%clk 0:01:09]} 23. Qe2 {[%clk 0:00:23]}  Nxd4 {[%clk 0:01:07]} 24. Qh5 {[%clk 0:00:20]}  e5 {[%clk 0:01:06]} 25. Qg6 {[%clk 0:00:17]}  Ndf5 {[%clk 0:01:04]} 26. Nxf5 {[%clk 0:00:16]}  Be8 {[%clk 0:01:01]} 27. Nxh6+ {[%clk 0:00:16]}  Kh8 {[%clk 0:00:59]} 28. Qh7# {[%clk 0:00:17]} 1-0


[Site "https://www.chess.com"]

[Event "Titled Tuesday Blitz February 07 Late 2023"]
[White "Todev, Simeon"]
[Black "Cella, Glaucio Dalla Cortt"]
[WhiteFideId "2925133"]
[BlackFideId "2119455"]
[WhiteElo "2033"]
[BlackElo "1894"]
[Result "1-0"]
[Round "07"]
[TimeControl "180+2"]
[Date "2023.02.07"]
[WhiteClock "0:00:22"]
[BlackClock "0:00:04"]

1. e4 {[%clk 0:03:00]}  c5 {[%clk 0:02:54]} 2. Nf3 {[%clk 0:02:58]}  e6 {[%clk 0:02:55]} 3. Bd3 {[%clk 0:02:58]}  Nc6 {[%clk 0:02:43]} 4. c3 {[%clk 0:02:59]}  d5 {[%clk 0:02:31]} 5. e5 {[%clk 0:02:58]}  Qc7 {[%clk 0:02:30]} 6. Qe2 {[%clk 0:02:58]}  g6 {[%clk 0:02:30]} 7. Bc2 {[%clk 0:02:57]}  Bg7 {[%clk 0:02:26]} 8. d4 {[%clk 0:02:58]}  cxd4 {[%clk 0:02:27]} 9. cxd4 {[%clk 0:02:59]}  Bd7 {[%clk 0:02:12]} 10. Nc3 {[%clk 0:02:57]}  Nge7 {[%clk 0:02:07]} 11. Nb5 {[%clk 0:02:54]}  Qa5+ {[%clk 0:02:02]} 12. Bd2 {[%clk 0:02:53]}  Qb6 {[%clk 0:02:03]} 13. Nd6+ {[%clk 0:02:52]}  Kf8 {[%clk 0:02:03]} 14. Bc3 {[%clk 0:02:47]}  Nf5 {[%clk 0:01:59]} 15. Bxf5 {[%clk 0:02:46]}  exf5 {[%clk 0:02:00]} 16. Nxf7 {[%clk 0:02:31]}  Kxf7 {[%clk 0:01:58]} 17. e6+ {[%clk 0:02:32]}  Bxe6 {[%clk 0:01:55]} 18. Ng5+ {[%clk 0:02:32]}  Kf8 {[%clk 0:01:02]} 19. Nxe6+ {[%clk 0:02:30]}  Kg8 {[%clk 0:01:03]} 20. O-O {[%clk 0:02:17]}  Re8 {[%clk 0:01:00]} 21. Qf3 {[%clk 0:01:47]}  Rxe6 {[%clk 0:00:53]} 22. Qxd5 {[%clk 0:01:47]}  Ne7 {[%clk 0:00:54]} 23. Qc4 {[%clk 0:01:44]}  Qc6 {[%clk 0:00:51]} 24. Qb3 {[%clk 0:01:38]}  Nd5 {[%clk 0:00:51]} 25. Bd2 {[%clk 0:01:31]}  Kf7 {[%clk 0:00:44]} 26. Rac1 {[%clk 0:01:30]}  Qd6 {[%clk 0:00:30]} 27. Rc5 {[%clk 0:01:27]}  Rd8 {[%clk 0:00:26]} 28. Qxb7+ {[%clk 0:01:18]}  Rd7 {[%clk 0:00:26]} 29. Qb3 {[%clk 0:01:16]}  Bxd4 {[%clk 0:00:26]} 30. Rc4 {[%clk 0:01:12]}  Bf6 {[%clk 0:00:25]} 31. Rfc1 {[%clk 0:01:10]}  Kg7 {[%clk 0:00:22]} 32. g3 {[%clk 0:01:08]}  Qe7 {[%clk 0:00:19]} 33. Rc8 {[%clk 0:01:01]}  Nb6 {[%clk 0:00:18]} 34. Bb4 {[%clk 0:00:52]}  Red6 {[%clk 0:00:16]} 35. Bxd6 {[%clk 0:00:39]}  Qxd6 {[%clk 0:00:17]} 36. Rg8+ {[%clk 0:00:36]}  Kh6 {[%clk 0:00:12]} 37. Qe3+ {[%clk 0:00:36]}  Bg5 {[%clk 0:00:10]} 38. f4 {[%clk 0:00:32]}  Bxf4 {[%clk 0:00:08]} 39. gxf4 {[%clk 0:00:25]}  Qd4 {[%clk 0:00:07]} 40. Re1 {[%clk 0:00:22]}  Qxe3+ {[%clk 0:00:06]} 41. Rxe3 {[%clk 0:00:23]}  Rd2 {[%clk 0:00:04]} 42. Rh3# {[%clk 0:00:22]} 1-0


[Site "https://www.chess.com"]